fUST/lending_fUST_20250702
["ID","MTS","AMOUNT","RATE_DAILY","PERIOD"]
[369008628,1751433062166,-1916.48,0.00018127,2]
[369008629,1751433062175,-460.0,0.00018127,2]
[369008630,1751433062185,-2072.21,0.00018127,2]
[369008631,1751433062194,-2340.65,0.00018127,2]
[369008632,1751433062204,-520.17,0.00018127,2]
[369008633,1751433062214,-460.0,0.00018127,2]
[369008634,1751433062224,-460.0,0.00018127,2]
[369008635,1751433062235,-601.75,0.00018127,2]
[369008636,1751433062246,-1381.3,0.00018127,2]
[369008637,1751433062256,-894.46,0.00018127,2]
[369008638,1751433062266,-460.0,0.00018127,2]
[369008639,1751433062276,-684.17,0.00018127,2]
[369008640,1751433062285,-460.0,0.00018135,2]
[369008641,1751433062295,-460.0,0.00018135,2]
[369008642,1751433062304,-460.0,0.00018135,2]
[369008643,1751433062314,-460.0,0.00018135,2]
[369008644,1751433062323,-152.946531,0.00018135,2]
[369008645,1751433062332,-152.946531,0.00018135,2]
[369008646,1751433062342,-151.0,0.00018135,2]
[369008647,1751433062351,-460.0,0.00018137,2]
[369008648,1751433062360,-460.0,0.00018137,2]
[369008649,1751433062370,-483.72,0.00018137,2]
[369008650,1751433062380,-460.0,0.00018137,2]
[369008651,1751433062390,-308.86979727,0.00018137,2]
[369008652,1751433062400,-460.0,0.00018137,2]
[369008653,1751433062409,-552.23106488,0.00018137,2]
[369008654,1751433062419,-460.0,0.00018137,2]
[369008655,1751433062428,-460.0,0.00018137,2]
[369008656,1751433062437,-460.0,0.00018137,2]
[369008657,1751433062446,-460.0,0.00018137,2]
[369008658,1751433062456,-460.0,0.00018137,2]
[369008659,1751433062465,-341.86462615,0.00018137,2]
[369008660,1751433062474,-303.3764751,0.00018137,2]
[369008661,1751433062483,-460.0,0.00018137,2]
[369008662,1751433062493,-460.0,0.00018137,2]
[369008663,1751433062502,-460.0,0.00018137,2]
[369008664,1751433062512,-540.0,0.00018137,2]
[369008665,1751433062521,-460.0,0.00018137,2]
[369008666,1751433062531,-460.0,0.00018137,2]
[369008667,1751433062540,-460.0,0.00018137,2]
[369008668,1751433062549,-460.0,0.00018137,2]
[369008669,1751433062559,-460.0,0.00018137,2]
[369008670,1751433062569,-460.0,0.00018137,2]
[369008671,1751433062578,-460.0,0.00018137,2]
[369008672,1751433062588,-571.04349507,0.00018137,2]
[369008673,1751433062598,-460.0,0.00018137,2]
[369008674,1751433062608,-460.0,0.00018137,2]
[369008675,1751433062621,-460.0,0.00018137,2]
[369008676,1751433062631,-460.0,0.00018137,2]
[369008677,1751433062640,-460.0,0.00018137,2]
[369008678,1751433062650,-676.67,0.00018137,2]
[369008679,1751433062659,-460.0,0.00018137,2]
[369008680,1751433062669,-460.0,0.00018137,2]
[369008681,1751433062678,-460.0,0.00018137,2]
[369008682,1751433062687,-460.0,0.00018137,2]
[369008683,1751433062698,-460.0,0.00018137,2]
[369008684,1751433062708,-460.0,0.00018137,2]
[369008685,1751433062718,-460.0,0.00018137,2]
[369008686,1751433062727,-460.0,0.00018137,2]
[369008687,1751433062737,-460.0,0.00018137,2]
[369008688,1751433062747,-460.0,0.00018137,2]
[369008689,1751433062757,-564.62,0.00018137,2]
[369008690,1751433062766,-548.66,0.00018137,2]
[369008691,1751433062775,-460.0,0.00018137,2]
[369008692,1751433062785,-506.04,0.00018137,2]
[369008693,1751433062795,-460.0,0.00018137,2]
[369008694,1751433062804,-460.0,0.00018137,2]
[369008695,1751433062814,-460.0,0.00018137,2]
[369008696,1751433062824,-460.0,0.00018137,2]
[369008697,1751433062834,-734.34,0.00018137,2]
[369008698,1751433062844,-460.0,0.00018137,2]
[369008699,1751433062854,-460.0,0.00018137,2]
[369008700,1751433062864,-460.0,0.00018137,2]
[369008701,1751433062873,-460.0,0.00018137,2]
[369008702,1751433062883,-445.53601818,0.00018137,2]
[369008703,1751433062892,-460.0,0.00018137,2]
[369008704,1751433062902,-460.0,0.00018137,2]
[369008705,1751433062911,-460.0,0.00018137,2]
[369008706,1751433062920,-460.0,0.00018137,2]
[369008707,1751433062930,-460.0,0.00018137,2]
[369008708,1751433062940,-694.8,0.00018137,2]
[369008709,1751433062950,-460.0,0.00018137,2]
[369008710,1751433062960,-481.54,0.00018137,2]
[369008711,1751433062969,-460.0,0.00018137,2]
[369008712,1751433062979,-563.18,0.00018137,2]
[369008713,1751433062988,-460.0,0.00018137,2]
[369008714,1751433062997,-460.0,0.00018137,2]
[369008715,1751433063007,-460.0,0.00018137,2]
[369008716,1751433063016,-3296.63,0.00018137,2]
[369008717,1751433063026,-507.77,0.00018137,2]
[369008718,1751433063035,-500.0,0.00018137,2]
[369008719,1751433063044,-545.25,0.00018137,2]
[369008720,1751433063054,-460.0,0.00018137,2]
[369008721,1751433063064,-460.0,0.00018137,2]
[369008722,1751433063073,-324.03016664,0.00018137,2]
[369008723,1751433063083,-460.0,0.00018137,2]
[369008724,1751433063093,-777.38,0.00018137,2]
[369008725,1751433063104,-460.0,0.00018137,2]
[369008726,1751433063114,-460.0,0.00018137,2]
[369008727,1751433063124,-592.53,0.00018137,2]
[369008728,1751433063134,-699.33,0.00018137,2]
[369008729,1751433063144,-566.74,0.00018137,2]
[369008730,1751433063154,-614.28,0.00018137,2]
[369008731,1751433063164,-460.0,0.00018137,2]
[369008732,1751433063174,-3109.36,0.00018137,2]
[369008733,1751433063184,-599.74,0.00018137,2]
[369008734,1751433063194,-460.0,0.00018137,2]
[369008735,1751433063204,-460.0,0.00018137,2]
[369008736,1751433063214,-460.0,0.00018137,2]
[369008737,1751433063224,-622.6,0.00018137,2]
[369008738,1751433063234,-460.0,0.00018137,2]
[369008739,1751433063352,-460.0,0.00018137,2]
[369008740,1751433063362,-460.0,0.00018137,2]
[369008741,1751433063373,-1255.98,0.00018137,2]
[369008742,1751433063382,-718.74,0.00018137,2]
[369008743,1751433063392,-460.0,0.00018137,2]
[369008744,1751433063402,-460.0,0.00018137,2]
[369008745,1751433063411,-866.31,0.00018137,2]
[369008746,1751433063421,-460.0,0.00018137,2]
[369008747,1751433063430,-460.0,0.00018137,2]
[369008748,1751433063440,-460.0,0.00018137,2]
[369008749,1751433063450,-460.0,0.00018137,2]
[369008750,1751433063459,-988.53,0.00018137,2]
[369008751,1751433063469,-264.2709024,0.00018137,2]
[369008752,1751433063479,-460.0,0.00018137,2]
[369008753,1751433063489,-572.23,0.00018137,2]
[369008754,1751433063499,-470.44,0.00018137,2]
[369008755,1751433063509,-460.0,0.00018137,2]
[369008756,1751433063519,-707.88345509,0.00018176,2]
[369008757,1751433063528,-151.0,0.000182,2]
[369008758,1751433063538,-151.0,0.000182,2]
[369008759,1751433063547,-460.0,0.00018233,2]
[369008760,1751433063557,-552.58,0.00018233,2]
[369008761,1751433063566,-460.0,0.00018233,2]
[369008762,1751433063575,-460.0,0.00018233,2]
[369008763,1751433063585,-460.0,0.00018233,2]
[369008764,1751433063594,-460.0,0.00018233,2]
[369008765,1751433063604,-460.0,0.00018233,2]
[369008766,1751433063613,-460.0,0.00018233,2]
[369008767,1751433063626,-460.0,0.00018233,2]
[369008768,1751433063635,-460.0,0.00018233,2]
[369008769,1751433063644,-460.0,0.00018233,2]
[369008770,1751433063654,-460.0,0.00018233,2]
[369008771,1751433063665,-460.0,0.00018233,2]
[369008772,1751433063675,-460.0,0.00018233,2]
[369008773,1751433063684,-460.0,0.00018233,2]
[369008774,1751433063694,-460.0,0.00018233,2]
[369008775,1751433063706,-436.34797716,0.00018233,2]
[369008776,1751433063715,-460.0,0.00018233,2]
[369008777,1751433063725,-460.0,0.00018233,2]
[369008778,1751433063735,-151.0,0.00018233,2]
[369008779,1751433063744,-151.0,0.00018233,2]
[369008780,1751433063755,-494.896241,0.00018233,2]
[369008781,1751433063764,-494.896241,0.00018233,2]
[369008782,1751433063774,-151.897169,0.00018233,2]
[369008783,1751433063784,-460.0,0.00018235,2]
[369008784,1751433063793,-460.0,0.00018235,2]
[369008785,1751433063803,-460.0,0.00018235,2]
[369008786,1751433063813,-460.0,0.00018235,2]
[369008787,1751433063823,-460.0,0.00018235,2]
[369008788,1751433063832,-460.0,0.00018235,2]
[369008789,1751433063843,-460.0,0.00018235,2]
[369008790,1751433063854,-460.0,0.00018235,2]
[369008791,1751433063864,-460.0,0.00018235,2]
[369008792,1751433063873,-460.0,0.00018235,2]
[369008793,1751433063883,-460.0,0.00018235,2]
[369008794,1751433063893,-460.0,0.00018235,2]
[369008795,1751433063902,-460.0,0.00018235,2]
[369008796,1751433063911,-460.0,0.00018235,2]
[369008797,1751433063921,-460.0,0.00018235,2]
[369008798,1751433063931,-510.2,0.00018235,2]
[369008799,1751433063941,-526.76,0.00018235,2]
[369008800,1751433063951,-460.0,0.00018235,2]
[369008801,1751433063961,-460.0,0.00018235,2]
[369008802,1751433063970,-460.0,0.00018235,2]
[369008803,1751433063980,-460.0,0.00018235,2]
[369008804,1751433063989,-550.58455269,0.00018236,2]
[369008805,1751433063999,-558.46,0.00018336,2]
[369008806,1751433064008,-460.0,0.00018336,2]
[369008807,1751433064018,-460.0,0.00018336,2]
[369008808,1751433064027,-460.0,0.00018336,2]
[369008809,1751433064037,-460.0,0.00018336,2]
[369008810,1751433064047,-460.0,0.00018336,2]
[369008811,1751433064057,-151.0,0.00018336,2]
[369008812,1751433064067,-460.0,0.00018336,2]
[369008813,1751433064077,-151.0,0.00018336,2]
[369008814,1751433064087,-460.0,0.00018336,2]
[369008815,1751433064096,-205.452438,0.00018336,2]
[369008816,1751433064106,-460.0,0.00018336,2]
[369008817,1751433064116,-205.452438,0.00018336,2]
[369008818,1751433064126,-460.0,0.00018336,2]
[369008819,1751433064136,-500.0,0.00018336,2]
[369008820,1751433064146,-656.54,0.00018336,2]
[369008821,1751433064155,-547.63,0.00018336,2]
[369008822,1751433064164,-1259.483418,0.00018336,2]
[369008823,1751433064174,-1259.483418,0.00018336,2]
[369008824,1751433064183,-460.0,0.00018336,2]
[369008825,1751433064193,-574.05,0.00018336,2]
[369008826,1751433064203,-463.3,0.00018336,2]
[369008827,1751433064212,-460.0,0.00018336,2]
[369008828,1751433064221,-641.83,0.00018336,2]
[369008829,1751433064232,-460.0,0.00018336,2]
[369008830,1751433064242,-460.0,0.00018336,2]
[369008831,1751433064252,-460.0,0.00018336,2]
[369008832,1751433064262,-460.0,0.00018336,2]
[369008833,1751433064271,-460.0,0.00018336,2]
[369008834,1751433064282,-460.0,0.00018336,2]
[369008835,1751433064291,-497.88,0.00018336,2]
[369008836,1751433064302,-1511.8,0.00018336,2]
[369008837,1751433064311,-565.89,0.00018336,2]
[369008838,1751433064321,-594.16,0.00018336,2]
[369008839,1751433064330,-531.82,0.00018336,2]
[369008840,1751433064340,-460.0,0.00018336,2]
[369008841,1751433064350,-1425.93,0.00018336,2]
[369008842,1751433064360,-1001.54,0.00018336,2]
[369008843,1751433064370,-460.0,0.00018336,2]
[369008844,1751433064380,-460.0,0.00018336,2]
[369008845,1751433064389,-3223.55,0.00018336,2]
[369008846,1751433064399,-877.02,0.00018336,2]
[369008847,1751433064409,-582.24,0.00018336,2]
[369008848,1751433064419,-1292.49,0.00018336,2]
[369008849,1751433064429,-460.0,0.00018336,2]
[369008850,1751433064438,-460.0,0.00018336,2]
[369008851,1751433064448,-460.0,0.00018336,2]
[369008852,1751433064457,-460.0,0.00018336,2]
[369008853,1751433064466,-657.76,0.00018336,2]
[369008854,1751433064476,-460.0,0.00018336,2]
[369008855,1751433064486,-460.0,0.00018336,2]
[369008856,1751433064496,-460.0,0.00018336,2]
[369008857,1751433064505,-460.0,0.00018336,2]
[369008858,1751433064515,-151.0,0.000184,2]
[369008859,1751433064525,-420.70477028,0.000184,2]
[369008860,1751433064535,-460.0,0.000184,2]
[369008861,1751433064543,-532.53,0.000184,2]
[369008862,1751433064554,-578.42,0.000184,2]
[369008863,1751433064563,-1521.31,0.000184,2]
[369008864,1751433064573,-460.0,0.000184,2]
[369008865,1751433064582,-460.0,0.00018401,2]
[369008866,1751433064591,-460.0,0.00018401,2]
[369008867,1751433064601,-460.0,0.00018401,2]
[369008868,1751433064611,-2702.15,0.00018401,2]
[369008869,1751433064623,-460.0,0.00018401,2]
[369008870,1751433064632,-460.0,0.00018401,2]
[369008871,1751433064642,-958.68,0.00018401,2]
[369008872,1751433064651,-2328.48,0.00018401,2]
[369008873,1751433064663,-460.0,0.00018401,2]
[369008874,1751433064672,-635.34,0.00018401,2]
[369008875,1751433064682,-473.13,0.00018401,2]
[369008876,1751433064692,-460.0,0.00018401,2]
[369008877,1751433064703,-1916.48,0.00018401,2]
[369008878,1751433064713,-460.0,0.00018401,2]
[369008879,1751433064722,-2072.21,0.00018401,2]
[369008880,1751433064732,-2340.65,0.00018401,2]
[369008881,1751433064742,-520.17,0.00018401,2]
[369008882,1751433064751,-481.73383432,0.00018401,2]
[369008883,1751433064761,-460.0,0.00018401,2]
[369008884,1751433064770,-601.75,0.00018401,2]
[369008885,1751433064780,-1381.3,0.00018401,2]
[369008886,1751433064789,-894.46,0.00018401,2]
[369008887,1751433064799,-460.0,0.00018401,2]
[369008888,1751433064809,-684.17,0.00018401,2]
[369008889,1751433064818,-367.64994642,0.00018409,2]
[369008890,1751433064827,-460.0,0.00018409,2]
[369008891,1751433064836,-460.0,0.00018409,2]
[369008892,1751433064846,-460.0,0.00018409,2]
[369008893,1751433064855,-460.0,0.00018411,2]
[369008894,1751433064864,-460.0,0.00018411,2]
[369008895,1751433064874,-483.72,0.00018411,2]
[369008896,1751433064884,-384.98290986,0.00018411,2]
[369008897,1751433064893,-460.0,0.00018411,2]
[369008898,1751433064902,-460.0,0.00018411,2]
[369008899,1751433064912,-460.0,0.00018411,2]
[369008900,1751433064921,-460.0,0.00018411,2]
[369008901,1751433064930,-460.0,0.00018411,2]
[369008902,1751433064941,-465.84551242,0.00018411,2]
[369008903,1751433064951,-460.0,0.00018411,2]
[369008904,1751433064962,-460.0,0.00018411,2]
[369008905,1751433064973,-460.0,0.00018411,2]
[369008906,1751433064985,-460.0,0.00018411,2]
[369008907,1751433064995,-460.0,0.00018411,2]
[369008908,1751433065006,-460.0,0.00018411,2]
[369008909,1751433065015,-460.0,0.00018411,2]
[369008910,1751433065025,-460.0,0.00018411,2]
[369008911,1751433065034,-332.74467165,0.00018411,2]
[369008912,1751433065044,-460.0,0.00018411,2]
[369008913,1751433065054,-398.41415267,0.00018411,2]
[369008914,1751433065065,-460.0,0.00018411,2]
[369008915,1751433065074,-460.0,0.00018411,2]
[369008916,1751433065084,-460.0,0.00018411,2]
[369008917,1751433065093,-460.0,0.00018411,2]
[369008918,1751433065103,-676.67,0.00018411,2]
[369008919,1751433065112,-460.0,0.00018411,2]
[369008920,1751433065123,-460.0,0.00018411,2]
[369008921,1751433065134,-460.0,0.00018411,2]
[369008922,1751433065143,-485.05695505,0.00018411,2]
[369008923,1751433065153,-460.0,0.00018411,2]
[369008924,1751433065166,-460.0,0.00018411,2]
[369008925,1751433065175,-460.0,0.00018411,2]
[369008926,1751433065185,-460.0,0.00018411,2]
[369008927,1751433065195,-458.56843698,0.00018411,2]
[369008928,1751433065205,-460.0,0.00018411,2]
[369008929,1751433065214,-564.62,0.00018411,2]
[369008930,1751433065326,-548.66,0.00018411,2]
[369008931,1751433065336,-506.04,0.00018411,2]
[369008932,1751433065346,-460.0,0.00018411,2]
[369008933,1751433065355,-460.0,0.00018411,2]
[369008934,1751433065364,-527.39547607,0.00018411,2]
[369008935,1751433065374,-460.0,0.00018411,2]
[369008936,1751433065383,-734.34,0.00018411,2]
[369008937,1751433065393,-460.0,0.00018411,2]
[369008938,1751433065402,-460.0,0.00018411,2]
[369008939,1751433065411,-460.0,0.00018411,2]
[369008940,1751433065421,-460.0,0.00018411,2]
[369008941,1751433065430,-460.0,0.00018411,2]
[369008942,1751433065439,-550.84,0.00018411,2]
[369008943,1751433065449,-460.0,0.00018411,2]
[369008944,1751433065458,-460.0,0.00018411,2]
[369008945,1751433065467,-694.8,0.00018411,2]
[369008946,1751433065477,-460.0,0.00018411,2]
[369008947,1751433065487,-481.54,0.00018411,2]
[369008948,1751433065496,-563.18,0.00018411,2]
[369008949,1751433065506,-460.0,0.00018411,2]
[369008950,1751433065516,-460.0,0.00018411,2]
[369008951,1751433065525,-460.0,0.00018411,2]
[369008952,1751433065535,-3296.63,0.00018411,2]
[369008953,1751433065544,-507.77,0.00018411,2]
[369008954,1751433065555,-500.0,0.00018411,2]
[369008955,1751433065564,-545.25,0.00018411,2]
[369008956,1751433065575,-460.0,0.00018411,2]
[369008957,1751433065584,-460.0,0.00018411,2]
[369008958,1751433065594,-460.0,0.00018411,2]
[369008959,1751433065604,-777.38,0.00018411,2]
[369008960,1751433065614,-460.0,0.00018411,2]
[369008961,1751433065627,-592.53,0.00018411,2]
[369008962,1751433065636,-699.33,0.00018411,2]
[369008963,1751433065646,-566.74,0.00018411,2]
[369008964,1751433065655,-614.28,0.00018411,2]
[369008965,1751433065665,-460.0,0.00018411,2]
[369008966,1751433065674,-3109.36,0.00018411,2]
[369008967,1751433065684,-599.74,0.00018411,2]
[369008968,1751433065696,-460.0,0.00018411,2]
[369008969,1751433065706,-460.0,0.00018411,2]
[369008970,1751433065717,-460.0,0.00018411,2]
[369008971,1751433065726,-622.6,0.00018411,2]
[369008972,1751433065736,-460.0,0.00018411,2]
[369008973,1751433065747,-248.7687539,0.00018411,2]
[369008974,1751433065757,-460.0,0.00018411,2]
[369008975,1751433065767,-1255.98,0.00018411,2]
[369008976,1751433065776,-718.74,0.00018411,2]
[369008977,1751433065785,-460.0,0.00018411,2]
[369008978,1751433065795,-460.0,0.00018411,2]
[369008979,1751433065804,-866.31,0.00018411,2]
[369008980,1751433065814,-460.0,0.00018411,2]
[369008981,1751433065824,-460.0,0.00018411,2]
[369008982,1751433065833,-460.0,0.00018411,2]
[369008983,1751433065843,-988.53,0.00018411,2]
[369008984,1751433065852,-460.0,0.00018411,2]
[369008985,1751433065862,-572.23,0.00018411,2]
[369008986,1751433065871,-470.44,0.00018411,2]
[369008987,1751433065881,-460.0,0.00018411,2]
[369008988,1751433065892,-2000.0,0.00018416,2]
[369008989,1751433065906,-2000.0,0.00018416,2]
[369008990,1751433065917,-2000.0,0.00018416,2]
[369008991,1751433065927,-837.27862799,0.0001843,2]
[369008992,1751433065937,-160.0,0.0001843,2]
[369008993,1751433065947,-12573.65100011,0.0001843,2]
[369008994,1751433065958,-847.65867985,0.0001843,2]
[369008995,1751433065968,-230.34465076,0.0001843,2]
[369008996,1751433065977,-215.04179405,0.0001843,2]
[369008997,1751433065987,-213.90888375,0.0001843,2]
[369008998,1751433065996,-160.0,0.0001843,2]
[369008999,1751433066006,-160.0,0.0001843,2]
[369009000,1751433066015,-160.0,0.0001843,2]
[369009001,1751433066027,-160.0,0.0001843,2]
[369009002,1751433066037,-160.0,0.00018432,2]
[369009003,1751433066047,-160.0,0.00018432,2]
[369009004,1751433066059,-707.88345509,0.00018452,2]
[369009005,1751433066068,-460.0,0.00018507,2]
[369009006,1751433066078,-460.0,0.00018507,2]
[369009007,1751433066088,-460.0,0.00018507,2]
[369009008,1751433066097,-460.0,0.00018507,2]
[369009009,1751433066107,-433.26608202,0.00018507,2]
[369009010,1751433066117,-460.0,0.00018507,2]
[369009011,1751433066126,-460.0,0.00018507,2]
[369009012,1751433066135,-460.0,0.00018507,2]
[369009013,1751433066147,-460.0,0.00018507,2]
[369009014,1751433066156,-460.0,0.00018507,2]
[369009015,1751433066166,-554.65680826,0.00018507,2]
[369009016,1751433066175,-460.0,0.00018507,2]
[369009017,1751433066185,-460.0,0.00018507,2]
[369009018,1751433066195,-460.0,0.00018507,2]
[369009019,1751433066204,-460.0,0.00018509,2]
[369009020,1751433066214,-460.0,0.00018509,2]
[369009021,1751433066223,-460.0,0.00018509,2]
[369009022,1751433066233,-460.0,0.00018509,2]
[369009023,1751433066242,-460.0,0.00018509,2]
[369009024,1751433066252,-460.0,0.00018509,2]
[369009025,1751433066261,-460.0,0.00018509,2]
[369009026,1751433066271,-460.0,0.00018509,2]
[369009027,1751433066281,-460.0,0.00018509,2]
[369009028,1751433066290,-460.0,0.00018509,2]
[369009029,1751433066300,-460.0,0.00018509,2]
[369009030,1751433066310,-502.78,0.00018509,2]
[369009031,1751433066319,-460.0,0.00018509,2]
[369009032,1751433066329,-460.0,0.00018509,2]
[369009033,1751433066338,-460.0,0.00018509,2]
[369009034,1751433066347,-510.2,0.00018509,2]
[369009035,1751433066357,-526.76,0.00018509,2]
[369009036,1751433066366,-460.0,0.00018509,2]
[369009037,1751433066376,-151.0,0.00018509,2]
[369009038,1751433066385,-460.0,0.00018509,2]
[369009039,1751433066395,-151.0,0.00018509,2]
[369009040,1751433066404,-460.0,0.00018509,2]
[369009041,1751433066414,-460.0,0.00018509,2]
[369009042,1751433066423,-291.006551,0.00018509,2]
[369009043,1751433066433,-291.006551,0.00018509,2]
[369009044,1751433066442,-151.0,0.00018509,2]
[369009045,1751433066452,-151.0,0.00018509,2]
[369009046,1751433066461,-151.0,0.000186,2]
[369009047,1751433066471,-558.46,0.0001861,2]
[369009048,1751433066480,-411.23639041,0.0001861,2]
[369009049,1751433066490,-460.0,0.0001861,2]
[369009050,1751433066499,-460.0,0.0001861,2]
[369009051,1751433066510,-460.0,0.0001861,2]
[369009052,1751433066520,-460.0,0.0001861,2]
[369009053,1751433066529,-460.0,0.0001861,2]
[369009054,1751433066538,-460.0,0.0001861,2]
[369009055,1751433066548,-500.0,0.0001861,2]
[369009056,1751433066559,-656.54,0.0001861,2]
[369009057,1751433066568,-547.63,0.0001861,2]
[369009058,1751433066578,-460.0,0.0001861,2]
[369009059,1751433066588,-574.05,0.0001861,2]
[369009060,1751433066597,-463.3,0.0001861,2]
[369009061,1751433066607,-460.0,0.0001861,2]
[369009062,1751433066616,-641.83,0.0001861,2]
[369009063,1751433066629,-460.0,0.0001861,2]
[369009064,1751433066639,-460.0,0.0001861,2]
[369009065,1751433066648,-606.04,0.0001861,2]
[369009066,1751433066658,-460.0,0.0001861,2]
[369009067,1751433066668,-460.0,0.0001861,2]
[369009068,1751433066677,-460.0,0.0001861,2]
[369009069,1751433066686,-497.88,0.0001861,2]
[369009070,1751433066697,-1511.8,0.0001861,2]
[369009071,1751433066707,-565.89,0.0001861,2]
[369009072,1751433066716,-594.16,0.0001861,2]
[369009073,1751433066726,-531.82,0.0001861,2]
[369009074,1751433066735,-460.0,0.0001861,2]
[369009075,1751433066745,-1425.93,0.0001861,2]
[369009076,1751433066754,-1001.54,0.0001861,2]
[369009077,1751433066765,-460.0,0.0001861,2]
[369009078,1751433066777,-460.0,0.0001861,2]
[369009079,1751433066787,-3223.55,0.0001861,2]
[369009080,1751433066797,-877.02,0.0001861,2]
[369009081,1751433066807,-582.24,0.0001861,2]
[369009082,1751433066817,-1292.49,0.0001861,2]
[369009083,1751433066826,-460.0,0.0001861,2]
[369009084,1751433066835,-460.0,0.0001861,2]
[369009085,1751433066844,-185.3024153,0.0001861,2]
[369009086,1751433066853,-460.0,0.0001861,2]
[369009087,1751433066863,-657.76,0.0001861,2]
[369009088,1751433066872,-460.0,0.0001861,2]
[369009089,1751433066882,-460.0,0.0001861,2]
[369009090,1751433066891,-460.0,0.0001861,2]
[369009091,1751433066900,-460.0,0.0001861,2]
[369009092,1751433066910,-151.0,0.00018643,2]
[369009093,1751433066919,-460.0,0.00018674,2]
[369009094,1751433066930,-532.53,0.00018674,2]
[369009095,1751433066941,-578.42,0.00018674,2]
[369009096,1751433066952,-1521.31,0.00018674,2]
[369009097,1751433066962,-460.0,0.00018674,2]
[369009098,1751433066972,-318.77259246,0.00018675,2]
[369009099,1751433066981,-460.0,0.00018675,2]
[369009100,1751433066991,-460.0,0.00018675,2]
[369009101,1751433067000,-2702.15,0.00018675,2]
[369009102,1751433067009,-460.0,0.00018675,2]
[369009103,1751433067021,-460.0,0.00018675,2]
[369009104,1751433067030,-958.68,0.00018675,2]
[369009105,1751433067040,-2328.48,0.00018675,2]
[369009106,1751433067156,-460.0,0.00018675,2]
[369009107,1751433067166,-635.34,0.00018675,2]
[369009108,1751433067175,-473.13,0.00018675,2]
[369009109,1751433067185,-460.0,0.00018675,2]
[369009110,1751433067195,-1916.48,0.00018675,2]
[369009111,1751433067205,-349.53,0.00018675,2]
[369009112,1751433067215,-2072.21,0.00018675,2]
[369009113,1751433067224,-2340.65,0.00018675,2]
[369009114,1751433067235,-520.17,0.00018675,2]
[369009115,1751433067245,-460.0,0.00018675,2]
[369009116,1751433067255,-601.75,0.00018675,2]
[369009117,1751433067265,-1381.3,0.00018675,2]
[369009118,1751433067275,-894.46,0.00018675,2]
[369009119,1751433067285,-460.0,0.00018675,2]
[369009120,1751433067294,-684.17,0.00018675,2]
[369009121,1751433067304,-460.0,0.00018683,2]
[369009122,1751433067313,-460.0,0.00018683,2]
[369009123,1751433067323,-460.0,0.00018683,2]
[369009124,1751433067332,-460.0,0.00018685,2]
[369009125,1751433067342,-460.0,0.00018685,2]
[369009126,1751433067353,-483.72,0.00018685,2]
[369009127,1751433067363,-484.49307936,0.00018685,2]